fUST/lending_fUST_20250105
["ID","MTS","AMOUNT","RATE_DAILY","PERIOD"]
[347649692,1736014233904,-664.66890731,0.00018814,2]
[347649693,1736014233916,-664.66890731,0.00018814,2]
[347649694,1736014233926,-664.66890731,0.00018814,2]
[347649695,1736014233935,-664.66890731,0.00018814,2]
[347649696,1736014233946,-664.66890731,0.00018814,2]
[347649697,1736014233955,-664.66890731,0.00018814,2]
[347649698,1736014233965,-664.66890731,0.00018814,2]
[347649699,1736014233975,-664.66890731,0.00018814,2]
[347649700,1736014233985,-664.66890731,0.00018814,2]
[347649701,1736014233995,-664.66890731,0.00018814,2]
[347649702,1736014234005,-664.66890731,0.00018814,2]
[347649703,1736014234014,-664.66890731,0.00018814,2]
[347649704,1736014234023,-664.66890731,0.00018814,2]
[347649705,1736014234034,-664.66890731,0.00018814,2]
[347649706,1736014234043,-664.66890731,0.00018814,2]
[347649707,1736014234053,-664.66890731,0.00018814,2]
[347649708,1736014234062,-664.66890731,0.00018814,2]
[347649709,1736014234072,-664.66890731,0.00018814,2]
[347649710,1736014234082,-664.66890731,0.00018814,2]
[347649711,1736014234091,-664.66890731,0.00018814,2]
[347649712,1736014234101,-664.66890731,0.00018814,2]
[347649713,1736014234110,-664.66890731,0.00018814,2]
[347649714,1736014234119,-664.66890731,0.00018814,2]
[347649715,1736014234130,-664.66890731,0.00018814,2]
[347649716,1736014234140,-664.66890731,0.00018814,2]
[347649717,1736014234151,-664.66890731,0.00018814,2]
[347649718,1736014234160,-664.66890731,0.00018814,2]
[347649719,1736014234170,-664.66890731,0.00018814,2]
[347649720,1736014234179,-500.0,0.00018814,2]
[347649721,1736014234188,-500.0,0.00018814,2]
[347649722,1736014234197,-500.0,0.00018814,2]
[347649723,1736014234207,-500.0,0.00018814,2]
[347649724,1736014234216,-500.0,0.00018814,2]
[347649725,1736014234226,-500.0,0.00018814,2]
[347649726,1736014234235,-500.0,0.00018814,2]
[347649727,1736014234244,-500.0,0.00018814,2]
[347649728,1736014234254,-500.0,0.00018814,2]
[347649729,1736014234263,-500.0,0.00018814,2]
[347649730,1736014234273,-500.0,0.00018814,2]
[347649731,1736014234282,-500.0,0.00018814,2]
[347649732,1736014234292,-440.21752319,0.00018814,2]
[347649733,1736014234301,-500.0,0.00018814,2]
[347649734,1736014234311,-500.0,0.00018814,2]
[347649735,1736014234320,-500.0,0.00018814,2]
[347649736,1736014234329,-500.0,0.00018814,2]
[347649737,1736014234338,-500.0,0.00018814,2]
[347649738,1736014234347,-500.0,0.00018814,2]
[347649739,1736014234357,-500.0,0.00018814,2]
[347649740,1736014234366,-500.0,0.00018814,2]
[347649741,1736014234375,-500.0,0.00018814,2]
[347649742,1736014234386,-500.0,0.00018814,2]
[347649743,1736014234396,-500.0,0.00018814,2]
[347649744,1736014234405,-500.0,0.00018814,2]
[347649745,1736014234414,-500.0,0.00018814,2]
[347649746,1736014234424,-500.0,0.00018814,2]
[347649747,1736014234433,-500.0,0.00018814,2]
[347649748,1736014234442,-500.0,0.00018814,2]
[347649749,1736014234451,-500.0,0.00018814,2]
[347649750,1736014234461,-500.0,0.00018814,2]
[347649751,1736014234472,-500.0,0.00018814,2]
[347649752,1736014234481,-500.0,0.00018814,2]
[347649753,1736014234491,-500.0,0.00018814,2]
[347649754,1736014234501,-500.0,0.00018814,2]
[347649755,1736014234511,-500.0,0.00018814,2]
[347649756,1736014234520,-500.0,0.00018814,2]
[347649757,1736014234530,-500.0,0.00018814,2]
[347649758,1736014234540,-500.0,0.00018814,2]
[347649759,1736014234550,-500.0,0.00018814,2]
[347649760,1736014234559,-500.0,0.00018814,2]
[347649761,1736014234568,-500.0,0.00018814,2]
[347649762,1736014234579,-500.0,0.00018814,2]
[347649763,1736014234588,-500.0,0.00018814,2]
[347649764,1736014234597,-500.0,0.00018814,2]
[347649765,1736014234608,-500.0,0.00018814,2]
[347649766,1736014234618,-500.0,0.00018814,2]
[347649767,1736014234628,-500.0,0.00018814,2]
[347649768,1736014234651,-638.95629473,0.00018814,2]
[347649769,1736014234661,-500.0,0.00018814,2]
[347649770,1736014234670,-500.0,0.00018814,2]
[347649771,1736014234680,-500.0,0.00018814,2]
[347649772,1736014234690,-500.0,0.00018814,2]
[347649773,1736014234699,-500.0,0.00018814,2]
[347649774,1736014234708,-500.0,0.00018814,2]
[347649775,1736014234718,-500.0,0.00018814,2]
[347649776,1736014234728,-500.0,0.00018814,2]
[347649777,1736014234738,-500.0,0.00018814,2]
[347649778,1736014234748,-500.0,0.00018814,2]
[347649779,1736014234757,-500.0,0.00018814,2]
[347649780,1736014234768,-500.0,0.00018814,2]
[347649781,1736014234778,-500.0,0.00018814,2]
[347649782,1736014234791,-495.8173285,0.00018814,2]
[347649783,1736014234801,-500.0,0.00018814,2]
[347649784,1736014234811,-500.0,0.00018814,2]
[347649785,1736014234820,-500.0,0.00018814,2]
[347649786,1736014234831,-500.0,0.00018814,2]
[347649787,1736014234841,-500.0,0.00018814,2]
[347649788,1736014234850,-500.0,0.00018814,2]
[347649789,1736014234859,-500.0,0.00018814,2]
[347649790,1736014234870,-500.0,0.00018814,2]
[347649791,1736014234880,-500.0,0.00018814,2]
[347649792,1736014234889,-500.0,0.00018814,2]
[347649793,1736014234899,-500.0,0.00018814,2]
[347649794,1736014234910,-500.0,0.00018814,2]
[347649795,1736014234924,-500.0,0.00018814,2]
[347649796,1736014234934,-500.0,0.00018814,2]
[347649797,1736014234945,-500.0,0.00018814,2]
[347649798,1736014234954,-500.0,0.00018814,2]
[347649799,1736014234966,-500.0,0.00018814,2]
[347649800,1736014234976,-500.0,0.00018814,2]
[347649801,1736014234987,-500.0,0.00018814,2]
[347649802,1736014234998,-500.0,0.00018814,2]
[347649803,1736014235008,-500.0,0.00018814,2]
[347649804,1736014235018,-664.6689073,0.00018814,2]
[347649805,1736014235028,-664.6689073,0.00018814,2]
[347649806,1736014235037,-664.6689073,0.00018814,2]
[347649807,1736014235047,-664.6689073,0.00018814,2]
[347649808,1736014235056,-664.6689073,0.00018814,2]
[347649809,1736014235065,-664.6689073,0.00018814,2]
[347649810,1736014235074,-664.6689073,0.00018814,2]
[347649811,1736014235084,-664.6689073,0.00018814,2]
[347649812,1736014235094,-664.6689073,0.00018814,2]
[347649813,1736014235103,-664.6689073,0.00018814,2]
[347649814,1736014235113,-664.6689073,0.00018814,2]
[347649815,1736014235123,-664.6689073,0.00018814,2]
[347649816,1736014235133,-664.6689073,0.00018814,2]
[347649817,1736014235142,-664.6689073,0.00018814,2]
[347649818,1736014235152,-664.6689073,0.00018814,2]
[347649819,1736014235162,-664.6689073,0.00018814,2]
[347649820,1736014235172,-664.6689073,0.00018814,2]
[347649821,1736014235182,-664.6689073,0.00018814,2]
[347649822,1736014235191,-664.6689073,0.00018814,2]
[347649823,1736014235200,-664.6689073,0.00018814,2]
[347649824,1736014235210,-664.6689073,0.00018814,2]
[347649825,1736014235219,-664.6689073,0.00018814,2]
[347649826,1736014235229,-311.49703395,0.00018814,2]
[347649827,1736014235448,-353.17187335,0.00018814,2]
[347649828,1736014235459,-664.6689073,0.00018814,2]
[347649829,1736014235469,-664.6689073,0.00018814,2]
[347649830,1736014235479,-664.6689073,0.00018814,2]
[347649831,1736014235489,-664.6689073,0.00018814,2]
[347649832,1736014235499,-664.6689073,0.00018814,2]
[347649833,1736014235510,-664.6689073,0.00018814,2]
[347649834,1736014235521,-664.6689073,0.00018814,2]
[347649835,1736014235530,-664.6689073,0.00018814,2]
[347649836,1736014235540,-500.0,0.00018814,2]
[347649837,1736014235550,-500.0,0.00018814,2]
[347649838,1736014235559,-500.0,0.00018814,2]
[347649839,1736014235570,-500.0,0.00018814,2]
[347649840,1736014235579,-500.0,0.00018814,2]
[347649841,1736014235590,-500.0,0.00018814,2]
[347649842,1736014235599,-500.0,0.00018814,2]
[347649843,1736014235609,-500.0,0.00018814,2]
[347649844,1736014235791,-500.0,0.00018814,2]
[347649845,1736014235801,-500.0,0.00018814,2]
[347649846,1736014235811,-250.0,0.00018814,2]
[347649847,1736014235821,-17.67807357,0.00018814,2]
[347649876,1736014238564,-300.0,0.00015678,2]
[347649877,1736014238575,-503.75621446,0.00016345,2]
[347649878,1736014238584,-395.20521963,0.00018813,2]
[347649879,1736014238593,-217.23882225,0.00018813,2]
[347649880,1736014238603,-500.0,0.00018813,2]
[347649881,1736014238613,-394.0,0.00018815,2]
[347649882,1736014238624,-499.0,0.00018857,2]
[347649883,1736014238634,-151.0,0.00018884,2]
[347649884,1736014238643,-35.83033124,0.00018884,2]
[347649885,1736014238660,-115.16966876,0.00018884,2]
[347649886,1736014238670,-151.0,0.00018884,2]
[347649887,1736014238679,-151.0,0.00018884,2]
[347649888,1736014238689,-151.0,0.00018884,2]
[347649889,1736014238699,-1605.98713148,0.00018886,2]
[347649890,1736014238708,-2083.46192022,0.000189,2]
[347649891,1736014238718,-201.95745406,0.00018936,2]
[347649905,1736014240681,-385.04254594,0.00018936,2]
[347649906,1736014240692,-2083.46192008,0.00019038,2]
[347649907,1736014240702,-151.0,0.00019078,2]
[347649908,1736014240711,-198.907698,0.00019078,2]
[347649909,1736014240721,-151.0,0.00019078,2]
[347649910,1736014240731,-1735.97525725,0.00019078,2]
[347649911,1736014240742,-366.276527,0.00019078,2]
[347649912,1736014240751,-366.276527,0.00019078,2]
[347649913,1736014240761,-462.16069224,0.00019078,2]
[347649914,1736014240771,-453.0,0.000191,8]
[347649915,1736014240781,-11625.60913582,0.00019166,2]
[347649916,1736014240790,-589.7,0.00019172,5]
[347649917,1736014240800,-500.0,0.00019173,2]
[347649918,1736014240810,-500.0,0.00019173,2]
[347649919,1736014240820,-500.0,0.00019173,2]
[347649920,1736014240830,-259.95870971,0.00019173,2]
[347649921,1736014240839,-500.0,0.00019173,2]
[347649922,1736014240848,-500.94274312,0.00019173,2]
[347649923,1736014240857,-500.0,0.00019173,2]
[347649924,1736014240868,-500.0,0.00019173,2]
[347649925,1736014240878,-500.14846428,0.00019173,2]
[347649926,1736014240889,-203.5612065,0.00019173,2]
[347649927,1736014240899,-500.0,0.00019173,2]
[347649928,1736014240909,-500.0,0.00019173,2]
[347649929,1736014240921,-501.70911784,0.00019173,2]
[347649930,1736014240930,-311.93715762,0.00019173,2]
[347649931,1736014240939,-500.58599813,0.00019173,2]
[347649932,1736014240949,-500.0,0.00019173,2]
[347649933,1736014240959,-500.0,0.00019173,2]
[347649934,1736014240970,-500.0,0.00019173,2]
[347649935,1736014241011,-166.15939083,0.00019173,2]
[347649936,1736014241020,-266.2447201,0.00019173,2]
[347649937,1736014241031,-447.37836939,0.00019173,2]
[347649938,1736014241041,-299.01582691,0.00019173,2]
[347649939,1736014241051,-500.0,0.00019173,2]
[347649940,1736014241060,-500.0,0.00019173,2]
[347649941,1736014241070,-152.25796607,0.00019173,2]
[347649942,1736014241079,-537.16910987,0.00019173,2]
[347649943,1736014241088,-500.0,0.00019173,2]
[347649944,1736014241098,-204.625877,0.00019175,2]
[347649945,1736014241107,-204.625877,0.00019175,2]
[347649946,1736014241117,-151.0,0.00019175,2]
[347649947,1736014241126,-243.937827,0.00019175,2]
[347649948,1736014241137,-243.937827,0.00019175,2]
[347649949,1736014241146,-151.0,0.00019175,2]
[347649950,1736014241155,-470.36304,0.00019175,2]
[347649951,1736014241166,-151.0,0.00019175,2]
[347649952,1736014241175,-470.36304,0.00019175,2]
[347649953,1736014241185,-2083.46192008,0.00019176,2]
[347649954,1736014241195,-174.426466,0.00019176,2]
[347649955,1736014241205,-174.426466,0.00019176,2]
[347649956,1736014241214,-151.0,0.00019176,2]
[347649957,1736014241224,-500.0,0.00019177,2]
[347649958,1736014241233,-1224.14791273,0.00019178,2]
[347649961,1736014243649,-260.03349036,0.00017272,2]
[347649987,1736014861592,158.18482,0.00013973,2]
[347649997,1736015269102,-213.6329361,0.00014524,2]
[347649998,1736015269124,-213.6329361,0.00014671,2]
[347649999,1736015269147,-213.6329361,0.00017561,2]
[347650000,1736015269168,-201.50244,0.00017801,2]
[347650001,1736015269190,-24900.0,0.00017887,2]
[347650002,1736015269213,-264.692,0.0001848,2]
[347650003,1736015269234,-152.0,0.00018812,2]
[347650004,1736015269254,-151.0,0.00018815,2]
[347650005,1736015269274,-151.0,0.00018815,2]
[347650006,1736015269295,-151.0,0.00018815,2]
[347650007,1736015269316,-156.98382,0.00018815,2]
[347650008,1736015269338,-156.98382,0.00018815,2]
[347650009,1736015269358,-154.6,0.00018815,2]
[347650010,1736015269377,-1308.7437178,0.00018894,2]
[347650011,1736015269398,-300.0,0.00018899,2]
[347650012,1736015269419,-5000.0,0.000189,2]
[347650013,1736015269439,-201.47574782,0.000189,2]
[347650014,1736015269459,-5000.0,0.00018904,2]
[347650015,1736015269479,-11625.60913583,0.00018923,2]
[347650016,1736015269503,-152.175992,0.0001894,2]
[347650017,1736015269525,-156.98382,0.0001894,2]
[347650018,1736015269547,-156.98382,0.0001894,2]
[347650019,1736015269571,-998.80143827,0.00019077,2]
[347650020,1736015269592,-500.0,0.00019077,5]
[347650021,1736015269612,-176.04658547,0.00019077,2]
[347650022,1736015269632,-176.04658545,0.00019077,2]
[347650023,1736015269653,-187.275,0.00019078,2]
[347650024,1736015269673,-176.04658545,0.00019078,2]
[347650025,1736015269694,-177.465,0.00019078,2]
[347650026,1736015269714,-176.04658545,0.00019078,2]
[347650027,1736015274051,470.86247611,0.00016,2]
[347650077,1736015431809,-12097.9348699,0.00016998,2]
[347650079,1736015431822,-500.0,0.00016998,2]
[347650087,1736015431890,-138533.48288514,0.00016998,2]
[347650143,1736015438279,-152.06717558,0.00016997,2]
[347650144,1736015438288,-500.0,0.00016997,2]
[347650145,1736015438298,-500.0,0.00016997,2]
[347650146,1736015438307,-500.0,0.00016997,2]
[347650147,1736015438316,-500.0,0.00016997,2]
[347650148,1736015438326,-500.0,0.00016997,2]
[347650149,1736015438335,-500.0,0.00016997,2]
[347650150,1736015438344,-500.0,0.00016997,2]
[347650151,1736015438354,-621.16456935,0.00016997,2]
[347650152,1736015438363,-500.0,0.00016997,2]
[347650153,1736015438373,-500.0,0.00016997,2]
[347650154,1736015438382,-500.0,0.00016997,2]
[347650155,1736015438392,-463.38133104,0.00016997,2]
[347650156,1736015438401,-500.0,0.00016997,2]
[347650157,1736015438411,-500.0,0.00016997,2]
[347650158,1736015438421,-500.0,0.00016997,2]
[347650159,1736015438430,-500.0,0.00016997,2]
[347650160,1736015438439,-500.0,0.00016997,2]
[347650161,1736015438449,-500.0,0.00016997,2]
[347650162,1736015438459,-500.0,0.00016997,2]
[347650163,1736015438468,-500.0,0.00016997,2]
[347650164,1736015438478,-500.0,0.00016997,2]
[347650165,1736015438487,-500.0,0.00016997,2]
[347650166,1736015438497,-500.0,0.00016997,2]
[347650167,1736015438506,-500.0,0.00016997,2]
[347650168,1736015438516,-500.0,0.00016997,2]
[347650169,1736015438528,-500.0,0.00016997,2]
[347650170,1736015438538,-500.0,0.00016997,2]
[347650171,1736015438547,-184.59230425,0.00016997,2]
[347650172,1736015438556,-500.0,0.00016997,2]
[347650173,1736015438565,-500.0,0.00016997,2]
[347650174,1736015438576,-500.0,0.00016997,2]
[347650175,1736015438585,-449.19410191,0.00016997,2]
[347650176,1736015438594,-318.89562947,0.00016997,2]
[347650177,1736015438606,-500.0,0.00016997,2]
[347650178,1736015438615,-297.01123742,0.00016997,2]
[347650179,1736015438624,-500.0,0.00016997,2]
[347650180,1736015438634,-500.0,0.00016997,2]
[347650181,1736015438644,-500.0,0.00016997,2]
[347650182,1736015438653,-500.0,0.00016997,2]
[347650183,1736015438662,-500.0,0.00016997,2]
[347650184,1736015438672,-500.0,0.00016997,2]
[347650185,1736015438682,-500.0,0.00016997,2]
[347650186,1736015438693,-500.0,0.00016997,2]
[347650187,1736015438702,-500.0,0.00016997,2]
[347650188,1736015438711,-500.0,0.00016997,2]
[347650189,1736015438721,-500.0,0.00016997,2]
[347650190,1736015438730,-500.0,0.00016997,2]
[347650191,1736015438743,-500.0,0.00016997,2]
[347650192,1736015438753,-500.0,0.00016997,2]
[347650193,1736015438763,-500.0,0.00016997,2]
[347650194,1736015438772,-500.0,0.00016997,2]
[347650195,1736015438781,-500.0,0.00016997,2]
[347650196,1736015438791,-500.0,0.00016997,2]
[347650197,1736015438801,-279.67146664,0.00016997,2]
[347650198,1736015438811,-500.0,0.00016997,2]
[347650199,1736015438820,-500.0,0.00016997,2]
[347650200,1736015438830,-500.0,0.00016997,2]
[347650201,1736015438839,-500.0,0.00016997,2]
[347650202,1736015438848,-500.0,0.00016997,2]
[347650203,1736015438858,-500.0,0.00016997,2]
[347650204,1736015438867,-500.0,0.00016997,2]
[347650205,1736015438877,-170.97833442,0.00016997,2]
[347650206,1736015438887,-500.0,0.00016997,2]
[347650207,1736015438897,-500.0,0.00016997,2]
[347650208,1736015438907,-500.0,0.00016997,2]
[347650209,1736015438919,-500.0,0.00016997,2]
[347650210,1736015438929,-500.0,0.00016997,2]
[347650211,1736015438939,-500.0,0.00016997,2]
[347650212,1736015438949,-500.0,0.00016997,2]
[347650213,1736015438961,-500.0,0.00016997,2]
[347650214,1736015438971,-500.0,0.00016997,2]
[347650215,1736015438981,-500.0,0.00016997,2]
[347650216,1736015438991,-500.0,0.00016997,2]
[347650217,1736015439001,-500.0,0.00016997,2]
[347650218,1736015439011,-500.0,0.00016997,2]
[347650219,1736015439021,-500.0,0.00016997,2]
[347650220,1736015439031,-500.0,0.00016997,2]
[347650221,1736015439041,-167.63629827,0.00016997,2]
[347650222,1736015439051,-500.0,0.00016997,2]
[347650223,1736015439060,-500.0,0.00016997,2]
[347650224,1736015439070,-500.0,0.00016997,2]
[347650225,1736015439080,-500.0,0.00016997,2]
[347650226,1736015439090,-500.0,0.00016997,2]
[347650227,1736015439100,-500.0,0.00016997,2]
[347650228,1736015439110,-500.0,0.00016997,2]
[347650229,1736015439120,-500.0,0.00016997,2]
[347650230,1736015439130,-500.0,0.00016997,2]
[347650231,1736015439140,-141513.58224496,0.00016998,2]
[347650232,1736015439149,-300.0,0.00016998,2]
[347650233,1736015439158,-626.5729174,0.00017,2]
[347650234,1736015439167,-40103.05116075,0.00017,7]
[347650235,1736015439177,-201.502441,0.00017104,2]
[347650236,1736015439189,-15907.09795006,0.00018,2]
[347650258,1736015445790,-499.8,0.00018,2]
[347650263,1736015784249,158.18482,0.00013973,2]
[347650264,1736015911733,1000.0,0.00025,120]
[347650269,1736016085957,-592.99309612,0.00015684,2]
[347650270,1736016085981,-592.99309612,0.00015842,2]
[347650271,1736016086002,-499.0,0.00017999,2]
[347650272,1736016086025,-300.0,0.00017999,2]
[347650273,1736016086046,-98899.60240122,0.00018,2]
[347650275,1736016278186,-592.99309612,0.00015218,2]
[347650276,1736016278207,-592.99309612,0.00015372,2]
[347650277,1736016278228,-208.87755751,0.00015584,2]
[347650278,1736016278250,-300.0,0.00017781,2]
[347650279,1736016278273,-23205.13625025,0.00017782,2]
[347650401,1736016638132,-1417.99952999,0.00017081,2]
[347650414,1736016643123,-259.0,0.00017081,2]
[347650415,1736016643135,-17.86421976,0.00017081,2]
[347650416,1736016643144,-397.13578024,0.00017254,2]
[347650428,1736016645974,-312.875442,0.00017726,2]
[347650429,1736016645984,-20.4795575,0.00017758,2]
[347650430,1736016681060,203.780975,0.00013973,2]
[347650432,1736017583240,150.58,0.00013699,2]
[347650433,1736017583560,150.59351597,0.00013699,2]
[347650434,1736017719288,224.110195,0.00013973,2]
[347650487,1736017832443,-528.45502611,0.0001499,2]
[347650489,1736017832452,-306.0025077,0.00015141,2]
[347650506,1736017832786,-222.45251841,0.00015141,2]
[347650508,1736017832796,-300.0,0.0001526,2]
[347650510,1736017832805,-237.25803579,0.00015261,2]
[347650512,1736017832816,-626.838,0.00015261,2]
[347650514,1736017832829,-950.84243801,0.00015261,2]
[347650516,1736017832840,-1395.92,0.00015261,2]
[347650518,1736017832852,-291.69734597,0.00015261,2]
[347650549,1736017843299,-3572.42996675,0.00015108,2]
[347650560,1736017947153,185.9528876,0.00013493,2]
[347650561,1736018031519,185.9528876,0.00013977,2]
[347650562,1736018210882,3590.00049873,0.0001392,2]
[347650564,1736018268927,353.69420976,0.0001396,2]
[347650566,1736018303151,646.1534518,0.00013961,2]
[347650567,1736018322276,602.44453001,0.00013961,2]
[347650568,1736018347980,159.89239171,0.00013959,2]
[347650572,1736018400472,256.728234,0.00013699,2]
[347650573,1736018544647,350.92608902,0.00013958,2]
[347650574,1736018557511,527.13896375,0.00013958,2]
[347650575,1736018588652,208.036732,0.00013973,2]
[347650576,1736018615141,5370.2152477,0.0001322,2]
[347650577,1736018702514,193.76629,0.00013181,2]
[347650592,1736018764270,461.24659329,0.00013955,2]
[347650593,1736018780951,150.0,0.00014,2]
[347650597,1736018858016,1226.0348452,0.00013163,2]
[347650598,1736018887076,280.7408712,0.00013954,2]
[347650602,1736018964509,647.0444198,0.00013059,2]
[347650603,1736018968093,403.59076912,0.00013953,2]
[347650604,1736018982504,193.6773841,0.0001391,2]
[347650605,1736018998795,294.5252103,0.00013058,2]
[347650606,1736018998982,193.6773841,0.0001391,2]
[347650607,1736019014266,193.6773841,0.00013908,2]
[347650608,1736019029557,193.6773841,0.00013908,2]
[347650654,1736019032552,-193.6773841,0.00014048,2]
[347650656,1736019032561,-300.0,0.00014051,2]
[347650658,1736019032571,-6478.0,0.00014051,2]
[347650660,1736019032580,-6746.8871313,0.00014052,2]
[347650663,1736019032591,-9297.24838531,0.00014052,2]
[347650665,1736019032600,-56118.35093514,0.00014052,2]
[347650667,1736019032611,-112860.25587048,0.00014052,2]
[347650668,1736019032621,-500.0,0.00014053,2]
[347650669,1736019032630,-561.95920337,0.00014053,2]
[347650670,1736019032640,-189.13752448,0.00014053,2]
[347650671,1736019032649,-500.0,0.00014053,2]
[347650672,1736019032658,-500.0,0.00014053,2]
[347650673,1736019032668,-500.0,0.00014053,2]
[347650674,1736019032677,-500.0,0.00014053,2]
[347650675,1736019032687,-500.0,0.00014053,2]
[347650676,1736019032696,-500.0,0.00014053,2]
[347650677,1736019032705,-500.0,0.00014053,2]
[347650678,1736019032715,-500.0,0.00014053,2]
[347650679,1736019032724,-500.0,0.00014053,2]
[347650680,1736019032734,-500.0,0.00014053,2]
[347650681,1736019032743,-500.0,0.00014053,2]
[347650682,1736019032752,-500.0,0.00014053,2]
[347650683,1736019032761,-500.0,0.00014053,2]
[347650684,1736019032770,-500.0,0.00014053,2]
[347650685,1736019032779,-500.0,0.00014053,2]
[347650686,1736019032789,-500.0,0.00014053,2]
[347650687,1736019032798,-500.0,0.00014053,2]
[347650688,1736019032807,-458.19509441,0.00014053,2]
[347650689,1736019032816,-277.42058891,0.00014053,2]
[347650690,1736019032825,-500.0,0.00014053,2]
[347650691,1736019032834,-500.0,0.00014053,2]
[347650692,1736019032844,-500.0,0.00014053,2]
[347650693,1736019032853,-500.0,0.00014053,2]
[347650694,1736019032862,-522.31352232,0.00014053,2]
[347650695,1736019032871,-500.0,0.00014053,2]
[347650696,1736019032881,-500.0,0.00014053,2]
[347650697,1736019032890,-500.0,0.00014053,2]
[347650698,1736019032900,-500.0,0.00014053,2]
[347650699,1736019032909,-500.0,0.00014053,2]
[347650700,1736019032919,-500.0,0.00014053,2]
[347650701,1736019032928,-500.0,0.00014053,2]
[347650702,1736019032938,-285.01162417,0.00014053,2]
[347650703,1736019032947,-500.0,0.00014053,2]
[347650704,1736019032956,-500.0,0.00014053,2]
[347650705,1736019032966,-500.0,0.00014053,2]
[347650706,1736019032976,-279.23989766,0.00014053,2]
[347650707,1736019032986,-500.0,0.00014053,2]
[347650708,1736019032997,-500.0,0.00014053,2]
[347650709,1736019033007,-500.0,0.00014053,2]
[347650710,1736019033016,-500.0,0.00014053,2]
[347650711,1736019033026,-500.0,0.00014053,2]
[347650712,1736019033036,-500.0,0.00014053,2]
[347650713,1736019033046,-500.0,0.00014053,2]
[347650714,1736019033055,-500.0,0.00014053,2]
[347650715,1736019033065,-500.0,0.00014053,2]
[347650716,1736019033074,-500.0,0.00014053,2]
[347650717,1736019033084,-500.0,0.00014053,2]
[347650718,1736019033094,-500.0,0.00014053,2]
[347650719,1736019033103,-500.0,0.00014053,2]
[347650720,1736019033113,-500.0,0.00014053,2]
[347650721,1736019033123,-500.0,0.00014053,2]
[347650722,1736019033133,-210.45473515,0.00014053,2]
[347650723,1736019033142,-500.0,0.00014053,2]
[347650724,1736019033151,-500.0,0.00014053,2]
[347650725,1736019033160,-500.0,0.00014053,2]
[347650726,1736019033170,-500.0,0.00014053,2]
[347650727,1736019033179,-500.0,0.00014053,2]
[347650728,1736019033188,-500.0,0.00014053,2]
[347650729,1736019033198,-500.0,0.00014053,2]
[347650730,1736019033207,-500.0,0.00014053,2]
[347650731,1736019033216,-500.0,0.00014053,2]
[347650732,1736019033226,-345.06965999,0.00014053,2]
[347650733,1736019033235,-500.0,0.00014053,2]
[347650734,1736019033245,-500.0,0.00014053,2]
[347650735,1736019033254,-500.0,0.00014053,2]
[347650736,1736019033263,-500.0,0.00014053,2]
[347650737,1736019033272,-500.0,0.00014053,2]
[347650738,1736019033281,-500.0,0.00014053,2]
[347650739,1736019033290,-500.0,0.00014053,2]
[347650740,1736019033299,-500.0,0.00014053,2]
[347650741,1736019033308,-500.0,0.00014053,2]
[347650742,1736019033317,-500.0,0.00014053,2]
[347650743,1736019033326,-500.0,0.00014053,2]
[347650744,1736019033335,-500.0,0.00014053,2]
[347650745,1736019033344,-500.0,0.00014053,2]
[347650746,1736019033353,-500.0,0.00014053,2]
[347650747,1736019033362,-500.0,0.00014053,2]